bitfinex-derivatives/quotes_BTCF0:USTF0_20250129
["timestamp","ask_amount","ask_price","bid_price","bid_amount"]
[1738189225442,0.17067735,103650.0,103640.0,0.94976197]
[1738189226540,0.17067735,103650.0,103640.0,0.99900772]
[1738189226937,0.17367735,103650.0,103640.0,0.99900772]
[1738189230251,0.33572358,103670.0,103640.0,0.99900772]
[1738189230457,0.33572358,103670.0,103660.0,0.66096936]
[1738189230657,0.19912358,103670.0,103660.0,0.74436936]
[1738189230955,0.48358584,103680.0,103670.0,0.192929]
[1738189230956,0.17069549,103680.0,103670.0,0.192929]
[1738189231258,0.17069549,103680.0,103670.0,0.30015036]
[1738189231448,0.17069549,103680.0,103670.0,0.66095036]
[1738189232252,0.17069549,103680.0,103670.0,0.77517172]
[1738189233056,0.17069549,103680.0,103670.0,0.81517172]
[1738189233464,0.17069549,103680.0,103670.0,0.81717172]
[1738189233754,0.1446,103690.0,103680.0,0.192911]
[1738189233959,0.52669339,103700.0,103690.0,0.192892]
[1738189234147,0.66669339,103700.0,103690.0,0.66091336]
[1738189235256,0.35363744,103700.0,103690.0,0.66191336]
[1738189236956,0.35663744,103700.0,103690.0,0.66191336]
[1738189237557,0.35663744,103700.0,103690.0,0.66091336]
[1738189239054,0.243,103700.0,103690.0,0.66091336]
[1738189240346,0.103,103700.0,103690.0,0.66091336]
[1738189240551,0.103,103700.0,103690.0,0.71091336]
[1738189242154,0.103,103700.0,103690.0,0.72044265]
[1738189246751,0.103,103700.0,103690.0,0.76368265]
[1738189248653,0.103,103700.0,103690.0,0.72044265]
[1738189249054,0.2423,103700.0,103690.0,0.72044265]
[1738189256165,0.11363744,103720.0,103710.0,0.192855]
[1738189256360,0.11363744,103720.0,103710.0,0.66087636]
[1738189257164,0.11363744,103720.0,103710.0,0.81809772]
[1738189257561,0.11363744,103720.0,103710.0,0.76809772]
[1738189258064,0.14210976,103730.0,103720.0,0.192836]
[1738189258366,0.14210976,103730.0,103720.0,0.30005736]
[1738189258954,0.14210976,103730.0,103720.0,0.66085736]
[1738189259267,0.14210976,103730.0,103720.0,0.30105736]
[1738189259476,0.23370976,103730.0,103720.0,0.30105736]
[1738189260169,0.24170976,103730.0,103720.0,0.30205736]
[1738189261467,0.28930976,103730.0,103720.0,0.30205736]
[1738189262265,0.45984148,103730.0,103720.0,0.30205736]
[1738189263369,0.45984148,103730.0,103720.0,0.10922136]
[1738189263670,0.45984148,103730.0,103720.0,0.30205736]
[1738189264270,0.45984148,103730.0,103720.0,0.66285736]
[1738189265059,0.36514148,103730.0,103720.0,0.71285736]
[1738189265263,0.19460976,103730.0,103720.0,0.66285736]
[1738189266584,0.15010976,103730.0,103720.0,0.66285736]
[1738189267067,0.15010976,103730.0,103720.0,0.70589736]
[1738189267373,0.15010976,103730.0,103720.0,0.75589736]
[1738189267566,0.15010976,103730.0,103720.0,0.89639736]
[1738189273076,0.14510976,103730.0,103720.0,0.89539736]
[1738189273774,0.20271357,103730.0,103720.0,0.84849736]
[1738189274674,0.20271357,103730.0,103720.0,0.80545736]
[1738189274880,0.20271357,103730.0,103720.0,0.71085736]
[1738189275378,0.24761357,103730.0,103720.0,0.71085736]
[1738189276770,0.20271357,103730.0,103720.0,0.71085736]
[1738189276972,0.11712204,103730.0,103720.0,0.85475736]
[1738189277370,0.11712204,103730.0,103720.0,0.80475736]
[1738189277781,0.11712204,103730.0,103720.0,0.84475736]
[1738189279878,0.11712204,103730.0,103720.0,0.95197872]
[1738189279879,0.10529879,103730.0,103720.0,0.95197872]
[1738189280176,0.10139815,103730.0,103720.0,0.84475736]
[1738189281179,0.10139815,103730.0,103720.0,0.84875736]
[1738189281580,0.10139815,103730.0,103720.0,0.85775736]
[1738189281776,0.10139815,103730.0,103720.0,0.90067736]
[1738189282685,0.08561112,103740.0,103730.0,0.192818]
[1738189282883,0.08561112,103740.0,103730.0,0.66083936]
[1738189283488,0.27841012,103740.0,103730.0,0.66083936]
[1738189283782,0.27841012,103740.0,103720.0,0.30919704]
[1738189283783,0.63921012,103740.0,103720.0,0.30919704]
[1738189284086,0.1423,103730.0,103720.0,0.30919704]
[1738189284383,0.1423,103730.0,103720.0,0.30019704]
[1738189284976,0.1423,103730.0,103720.0,0.31319704]
[1738189285376,0.1423,103730.0,103720.0,0.30419704]
[1738189285577,0.335118,103730.0,103720.0,0.31319704]
[1738189286385,0.42072912,103730.0,103720.0,0.31319704]
[1738189286774,0.42072912,103730.0,103720.0,0.31219704]
[1738189288679,0.78152912,103730.0,103720.0,0.01214468]
[1738189290285,0.83802776,103730.0,103720.0,0.01214468]
[1738189290674,0.94524912,103730.0,103720.0,0.01214468]
[1738189290885,0.192836,103720.0,103710.0,0.17310712]
[1738189291087,0.553636,103720.0,103710.0,0.17310712]
[1738189291489,0.66085736,103720.0,103710.0,0.17310712]
[1738189292194,0.66085736,103720.0,103710.0,0.18210712]
[1738189292875,0.76802136,103720.0,103700.0,0.23100909]
[1738189293078,0.75197636,103710.0,103700.0,0.23100909]
[1738189293987,0.80067636,103710.0,103700.0,0.23100909]
[1738189294186,0.80167636,103710.0,103700.0,0.23900909]
[1738189294386,0.80167636,103710.0,103690.0,0.63469747]
[1738189294387,0.192874,103700.0,103690.0,0.63469747]
[1738189294588,0.192892,103690.0,103680.0,0.27929816]
[1738189294786,0.192911,103680.0,103670.0,0.40389839]
[1738189294990,0.66093236,103680.0,103670.0,0.40389839]
[1738189295485,0.96093236,103680.0,103670.0,0.40389839]
[1738189295685,0.192929,103670.0,103660.0,0.23088813]
[1738189295890,0.70375036,103670.0,103660.0,0.23088813]
[1738189296090,1.00375036,103670.0,103660.0,0.23088813]
[1738189297279,1.00375036,103670.0,103660.0,0.23388813]
[1738189297280,1.00475036,103670.0,103660.0,0.23388813]
[1738189297789,1.09625036,103670.0,103660.0,0.23788813]
[1738189298094,1.14525036,103670.0,103660.0,0.23788813]
[1738189299887,0.192966,103650.0,103640.0,0.2981722]
[1738189301295,0.59680786,103660.0,103650.0,0.192966]
[1738189301787,0.23600786,103660.0,103650.0,0.239066]
[1738189302987,0.19324786,103660.0,103650.0,0.239066]
[1738189303184,0.23600786,103660.0,103650.0,0.239066]
[1738189303379,0.23600786,103660.0,103650.0,0.243066]
[1738189303681,0.32201065,103660.0,103650.0,0.243066]
[1738189304780,0.68281065,103660.0,103650.0,0.243066]
[1738189304982,0.32201065,103660.0,103650.0,0.243066]
[1738189307487,0.79003201,103660.0,103650.0,0.196966]
[1738189307686,0.59780786,103660.0,103650.0,0.196966]
[1738189308798,0.59780786,103660.0,103640.0,0.46028637]
[1738189309000,0.59780786,103660.0,103650.0,0.192966]
[1738189309994,0.68281065,103660.0,103650.0,0.192966]
[1738189310897,0.68281065,103660.0,103650.0,0.005]
[1738189311194,0.68273065,103660.0,103650.0,0.005]
[1738189311597,0.68273065,103660.0,103650.0,0.197966]
[1738189312495,0.64005065,103660.0,103650.0,0.197966]
[1738189312697,0.68273065,103660.0,103650.0,0.197966]
[1738189315500,0.27925065,103660.0,103650.0,0.197966]
[1738189315692,0.27925065,103660.0,103650.0,0.30518736]
[1738189315994,0.08629765,103660.0,103650.0,0.30518736]
[1738189316196,0.14197273,103670.0,103660.0,0.192948]
[1738189316389,0.14197273,103670.0,103660.0,0.31524809]
[1738189316590,0.14197273,103670.0,103660.0,0.31524692]
[1738189316789,0.72424672,103680.0,103670.0,0.192929]
[1738189316991,0.72424672,103680.0,103670.0,0.20800656]
[1738189317189,0.72424672,103680.0,103670.0,0.23213037]
[1738189317396,0.36344672,103680.0,103670.0,0.23213037]
[1738189318098,0.36444672,103680.0,103670.0,0.20900656]
[1738189319289,0.36444672,103680.0,103670.0,0.25410656]
[1738189319697,0.36444672,103680.0,103670.0,0.25610656]
[1738189319900,0.36444672,103680.0,103670.0,0.34790656]
[1738189320095,0.17153172,103680.0,103670.0,0.332829]
[1738189320295,0.001,103680.0,103670.0,0.332829]
[1738189320494,0.001,103680.0,103670.0,0.44005036]
[1738189320997,0.001,103680.0,103670.0,0.332829]
[1738189321199,0.001,103680.0,103670.0,0.693629]
[1738189321700,0.001,103680.0,103670.0,0.80085036]
[1738189324393,0.001,103680.0,103670.0,0.81070373]
[1738189325904,0.001,103680.0,103670.0,0.91070373]
[1738189326494,0.00014468,103690.0,103680.0,0.192911]
[1738189326696,0.00014468,103690.0,103680.0,0.66093236]
[1738189327698,0.00114468,103690.0,103680.0,0.66293236]
[1738189328306,0.00114468,103690.0,103680.0,0.66393236]
[1738189330208,0.00114468,103690.0,103680.0,0.82115372]
[1738189331291,0.17053172,103700.0,103690.0,0.192892]
[1738189331503,0.17053172,103700.0,103690.0,0.75339336]
[1738189332196,0.17053172,103700.0,103690.0,0.70339336]
[1738189332597,0.17453172,103700.0,103690.0,0.70339336]
[1738189333304,0.17453172,103700.0,103690.0,0.71846422]
[1738189333802,0.18353172,103700.0,103690.0,0.71846422]
[1738189334196,0.18353172,103700.0,103690.0,0.81466422]
[1738189334905,0.013,103700.0,103690.0,0.86466422]
[1738189335098,0.00014468,103710.0,103690.0,0.86466422]
[1738189335099,0.00014468,103710.0,103700.0,0.192873]
[1738189335304,0.00014468,103710.0,103700.0,0.72266522]
[1738189336309,0.00014468,103710.0,103700.0,0.74977807]
[1738189336707,0.00114468,103710.0,103700.0,0.75877807]
[1738189336912,0.00114468,103710.0,103700.0,0.80877807]
[1738189337818,0.00114468,103710.0,103700.0,0.75877807]
[1738189338107,0.00114468,103710.0,103700.0,0.76850438]
[1738189338311,0.00114468,103710.0,103700.0,0.72932067]
[1738189344512,0.00114468,103710.0,103700.0,0.77932067]
[1738189348305,0.00114468,103710.0,103700.0,0.79430239]
[1738189348817,0.00114468,103710.0,103700.0,0.74430239]
[1738189353020,0.00114468,103710.0,103700.0,0.74439115]
[1738189354120,0.11480312,103710.0,103700.0,0.74439115]
[1738189355020,0.11480312,103710.0,103700.0,0.74432539]
[1738189356520,0.11480312,103710.0,103700.0,0.84432539]
[1738189356720,0.14241925,103720.0,103710.0,0.192855]
[1738189356921,0.14241925,103720.0,103710.0,0.83310244]
[1738189357119,0.14241925,103720.0,103710.0,0.96658244]
[1738189357320,0.31295097,103720.0,103710.0,0.96658244]
[1738189357916,0.31395097,103720.0,103710.0,0.92458244]
[1738189358126,0.31395097,103720.0,103710.0,0.92658244]
[1738189359320,0.31395097,103720.0,103710.0,0.97658244]
[1738189359523,0.31395097,103720.0,103710.0,0.96157772]
[1738189360526,0.001,103720.0,103710.0,0.96157772]
[1738189361932,0.14241925,103730.0,103720.0,0.30005736]
[1738189362126,0.14241925,103730.0,103720.0,0.66085736]
[1738189363335,0.14241925,103730.0,103720.0,0.70655736]
[1738189363534,0.14341925,103730.0,103720.0,0.71155736]
[1738189363833,0.14341925,103730.0,103720.0,0.71255736]
[1738189364030,0.17053172,103740.0,103720.0,0.72694272]
[1738189364334,0.12135412,103740.0,103730.0,0.90326072]
[1738189365229,0.12335412,103740.0,103730.0,0.90326072]
[1738189365824,0.12335412,103740.0,103730.0,0.91326072]
[1738189366024,0.19912358,103750.0,103730.0,0.72044272]
[1738189366224,0.1956028,103750.0,103740.0,0.81484172]
[1738189366436,0.1956028,103750.0,103740.0,0.82484172]
[1738189366932,0.17410155,103760.0,103740.0,0.63204272]
[1738189367133,0.1491933,103760.0,103750.0,0.66080236]
[1738189367434,0.1491933,103760.0,103750.0,0.73086506]
[1738189367839,0.1491933,103760.0,103750.0,0.77696506]
[1738189368134,0.1541933,103760.0,103750.0,0.77696506]
[1738189368334,0.1581933,103760.0,103750.0,0.77696506]
[1738189368537,0.1581933,103760.0,103750.0,0.81912506]
[1738189369735,0.012,103760.0,103750.0,0.82012506]
[1738189371036,0.012,103760.0,103750.0,0.82012469]
[1738189371237,0.012,103760.0,103750.0,0.82998095]
[1738189371937,0.012,103760.0,103750.0,0.82998062]
[1738189372138,0.012,103760.0,103750.0,0.81491862]
[1738189372936,0.012,103760.0,103750.0,0.82998074]
[1738189374543,0.012,103760.0,103750.0,0.81491862]
[1738189374740,0.012,103760.0,103750.0,0.82998023]
[1738189375348,0.012,103760.0,103750.0,0.81998023]
[1738189376342,0.012,103760.0,103750.0,0.86998023]
[1738189376740,0.012,103760.0,103750.0,0.73172023]
[1738189376942,0.012,103760.0,103750.0,0.68672023]
[1738189377441,0.012,103760.0,103750.0,0.6867213]
[1738189378242,0.012,103760.0,103750.0,0.7067213]
[1738189379043,0.012,103760.0,103750.0,0.69165862]
[1738189381237,0.012,103760.0,103750.0,0.31085862]
[1738189381833,0.204762,103760.0,103750.0,0.31085862]
[1738189382942,0.204762,103760.0,103750.0,0.32575965]
[1738189383843,0.565562,103760.0,103750.0,0.32575965]
[1738189384041,0.565562,103760.0,103750.0,0.31085862]
[1738189384243,0.204762,103760.0,103750.0,0.31085862]
[1738189387744,0.565562,103760.0,103750.0,0.31085862]
[1738189388160,0.204762,103760.0,103750.0,0.31085862]
[1738189398154,0.012,103760.0,103750.0,0.31085862]
[1738189398346,0.012,103760.0,103750.0,0.35645862]
[1738189399056,0.204762,103760.0,103750.0,0.35645862]
[1738189399259,0.204762,103760.0,103750.0,0.24923726]
[1738189399456,0.204762,103760.0,103750.0,0.20363726]
[1738189401162,0.204762,103760.0,103750.0,0.31085862]
[1738189409267,0.204762,103760.0,103750.0,0.20363726]
[1738189409758,0.204762,103760.0,103750.0,0.25123726]
[1738189410461,0.51891961,103760.0,103750.0,0.25123726]
[1738189410661,0.51891961,103760.0,103750.0,0.32149277]
[1738189413275,0.34770609,103760.0,103750.0,0.32149277]
[1738189415170,0.15494409,103760.0,103750.0,0.32149277]
[1738189415472,0.15494409,103760.0,103750.0,0.41759277]
[1738189418269,0.34770609,103760.0,103750.0,0.41759277]
[1738189420180,0.34770609,103760.0,103750.0,0.59111951]
[1738189424084,0.34770609,103760.0,103750.0,0.41759277]
[1738189427488,0.37597552,103760.0,103750.0,0.41759277]
[1738189427883,0.37597552,103760.0,103750.0,0.37039277]
[1738189428476,0.73677552,103760.0,103750.0,0.20363726]
[1738189428680,0.73677552,103760.0,103750.0,0.01085626]
[1738189428977,0.73677552,103760.0,103740.0,0.47494679]
[1738189428978,0.192781,103750.0,103740.0,0.47494679]
[1738189429174,0.701381,103750.0,103740.0,0.40469128]
[1738189429375,0.743061,103750.0,103740.0,0.40469128]
[1738189430177,0.743061,103750.0,103740.0,0.40569128]
[1738189430379,0.743061,103750.0,103740.0,0.42021461]
[1738189431489,0.81331651,103750.0,103740.0,0.42021461]
[1738189431690,0.81331651,103750.0,103740.0,0.01566801]
[1738189431990,0.192799,103740.0,103730.0,0.192804]
[1738189432182,0.3608,103740.0,103720.0,0.29492813]
[1738189432491,0.553618,103730.0,103720.0,0.48776213]
[1738189433081,0.553618,103730.0,103720.0,0.36780662]
[1738189433390,0.710318,103730.0,103720.0,0.43806213]
[1738189433583,0.710318,103730.0,103720.0,0.37580662]
[1738189433789,0.710318,103730.0,103720.0,0.44606213]
[1738189433990,0.710318,103730.0,103720.0,0.44906213]
[1738189434696,0.710318,103730.0,103720.0,0.45861297]
[1738189434892,0.710318,103730.0,103720.0,0.45716709]
[1738189435092,0.711318,103730.0,103720.0,0.45616709]
[1738189435393,0.711318,103730.0,103720.0,0.19307758]
[1738189435596,0.85412722,103730.0,103720.0,0.01955084]
[1738189436190,0.89576722,103730.0,103720.0,0.01955084]
[1738189437092,0.96602273,103730.0,103720.0,0.01955084]
[1738189437399,0.89576722,103730.0,103720.0,0.01955084]
[1738189437597,0.96602273,103730.0,103720.0,0.01]
[1738189437803,0.192836,103720.0,103710.0,0.19299068]
[1738189438001,0.553636,103720.0,103710.0,0.19299068]
[1738189438296,0.62389151,103720.0,103710.0,0.00014468]
[1738189438894,0.553636,103720.0,103710.0,0.00014468]
[1738189439093,0.62489151,103720.0,103710.0,0.01314468]
[1738189439504,0.554636,103720.0,103710.0,0.01314468]
[1738189440002,0.556636,103720.0,103710.0,0.00914468]
[1738189441403,0.563636,103720.0,103710.0,0.00014468]
[1738189444906,0.83309609,103720.0,103710.0,0.00014468]
[1738189445605,0.192855,103710.0,103700.0,0.20260534]
[1738189445804,0.709755,103710.0,103700.0,0.20260534]
[1738189446102,0.751315,103710.0,103700.0,0.00973834]
[1738189446406,0.192874,103700.0,103690.0,0.36513951]
[1738189447400,0.553674,103700.0,103690.0,0.36513951]
[1738189448202,0.554674,103700.0,103690.0,0.37213951]
[1738189448604,0.554674,103700.0,103690.0,0.37413951]
[1738189448801,0.193874,103700.0,103690.0,0.37413951]
[1738189448997,0.193874,103700.0,103690.0,0.251484]
[1738189449196,0.193874,103700.0,103690.0,0.26124144]
[1738189449398,0.62492951,103700.0,103690.0,0.01875744]
[1738189450006,0.62492951,103700.0,103690.0,0.009]
[1738189450306,0.62492951,103700.0,103680.0,0.38340119]
[1738189450307,0.192892,103690.0,103680.0,0.07014468]
[1738189450608,0.86275346,103690.0,103680.0,0.07014468]
[1738189451211,0.192929,103670.0,103660.0,0.35084]
[1738189451398,0.234449,103670.0,103660.0,0.35084]
[1738189452409,0.234449,103670.0,103660.0,0.36534998]
[1738189452610,0.235449,103670.0,103660.0,0.37434998]
[1738189453710,0.235449,103670.0,103660.0,0.48159144]
[1738189453907,0.04252,103670.0,103660.0,0.48159144]
[1738189454101,0.001,103670.0,103660.0,0.48159144]
[1738189454296,0.001,103670.0,103660.0,0.84239144]
[1738189462306,0.001,103670.0,103660.0,0.48159144]
[1738189462705,0.001,103670.0,103660.0,0.96239144]
[1738189462904,0.08551807,103680.0,103670.0,0.192929]
[1738189463102,0.08551807,103680.0,103670.0,0.66097046]
[1738189463311,0.11383119,103690.0,103680.0,0.192911]
[1738189463512,0.11383119,103690.0,103680.0,0.81535246]
[1738189464808,0.11483119,103690.0,103680.0,0.81835246]
[1738189466114,0.11483119,103690.0,103680.0,0.82135246]
[1738189466313,0.001,103690.0,103680.0,0.82135246]
[1738189466523,0.001,103690.0,103680.0,0.8363101]
[1738189468613,0.001,103690.0,103680.0,0.82135246]
[1738189474825,0.001,103690.0,103680.0,0.83340478]
[1738189480635,0.001,103690.0,103680.0,0.86684676]
[1738189481224,0.001,103690.0,103680.0,0.50604676]
[1738189481425,0.001,103690.0,103680.0,0.86684676]
[1738189483032,0.11483119,103690.0,103680.0,0.86684676]
[1738189483624,0.11483119,103690.0,103680.0,0.88182263]
[1738189486726,0.11483119,103690.0,103680.0,0.86684676]
[1738189487135,0.11483119,103690.0,103680.0,0.50604676]
[1738189489128,0.11483119,103690.0,103680.0,0.43570504]
[1738189489522,0.11483119,103690.0,103680.0,0.38490504]
[1738189492442,0.25764041,103690.0,103680.0,0.38490504]
[1738189494036,0.45053241,103690.0,103680.0,0.38490504]
[1738189495232,0.45053241,103690.0,103680.0,0.08839404]
[1738189495233,0.81133241,103690.0,103680.0,0.08839404]
[1738189495630,0.96783241,103690.0,103680.0,0.08839404]
[1738189496534,1.03817413,103690.0,103680.0,0.006]
[1738189496726,0.192911,103680.0,103670.0,0.40469128]
[1738189496931,0.66521272,103680.0,103670.0,0.40469128]
[1738189497131,0.73555444,103680.0,103670.0,0.40469128]
[1738189497939,0.73655444,103680.0,103670.0,0.40769128]
[1738189498342,0.73655444,103680.0,103670.0,0.41169128]
[1738189499133,0.73655444,103680.0,103670.0,0.40769128]
[1738189499334,0.73655444,103680.0,103670.0,0.41069128]
[1738189499736,0.73655444,103680.0,103670.0,0.40869128]
[1738189500334,0.74455444,103680.0,103670.0,0.40769128]
[1738189500835,0.75983522,103680.0,103670.0,0.40769128]
[1738189501235,0.75983522,103680.0,103670.0,0.40469128]
[1738189501433,0.75983522,103680.0,103670.0,0.40569128]
[1738189501434,0.76883522,103680.0,103670.0,0.40569128]
[1738189502034,0.76883522,103680.0,103670.0,1e-08]
[1738189502837,1.06883522,103680.0,103670.0,1e-08]
[1738189503049,0.76883522,103680.0,103670.0,1e-08]
[1738189503733,0.72767522,103680.0,103670.0,1e-08]
[1738189504043,0.76879522,103680.0,103670.0,1e-08]
[1738189505235,1.06879522,103680.0,103670.0,1e-08]
[1738189506129,0.57588422,103680.0,103660.0,0.00010469]
[1738189506329,0.85221244,103670.0,103660.0,0.00010469]
[1738189506541,0.85221244,103670.0,103640.0,0.152]
[1738189506542,0.192967,103650.0,103640.0,0.152]
[1738189506842,0.62410872,103650.0,103640.0,0.152]
[1738189507044,0.553767,103650.0,103640.0,0.152]
[1738189507238,0.62410872,103650.0,103640.0,0.152]
[1738189507633,0.62410872,103650.0,103640.0,0.1005]
[1738189508040,0.62510872,103650.0,103640.0,0.0507]
[1738189508231,0.62510872,103650.0,103640.0,0.0527]
[1738189510443,0.595807,103650.0,103640.0,0.12304172]
[1738189510638,0.595807,103650.0,103640.0,0.17254172]
[1738189511442,0.554767,103650.0,103640.0,0.36552672]
[1738189511638,0.554767,103650.0,103640.0,0.43586844]
[1738189511847,0.554767,103650.0,103640.0,0.36552672]
[1738189512246,0.001,103650.0,103640.0,0.43586844]
[1738189512643,0.001,103650.0,103640.0,0.40244415]
[1738189519149,0.193967,103650.0,103640.0,0.295185]
[1738189519545,0.554767,103650.0,103640.0,0.295185]
[1738189521939,0.554767,103650.0,103640.0,0.1022]
[1738189522145,0.66202615,103650.0,103640.0,0.003]
[1738189522449,0.81268615,103650.0,103640.0,0.003]
[1738189522749,0.86588615,103650.0,103640.0,0.003]
[1738189527348,1.03746651,103650.0,103640.0,0.003]
[1738189528254,0.95175866,103650.0,103630.0,0.00014468]
[1738189528452,0.66104415,103640.0,103630.0,0.00014468]
[1738189529559,0.66104415,103640.0,103630.0,0.00314468]
[1738189530754,0.66204415,103640.0,103630.0,0.00314468]
[1738189531356,0.83362451,103640.0,103630.0,0.00314468]
[1738189532657,0.83862451,103640.0,103630.0,0.00114468]
[1738189534252,0.85273351,103640.0,103630.0,0.00114468]
[1738189534958,0.68915315,103640.0,103630.0,0.00114468]
[1738189536361,0.72999315,103640.0,103630.0,0.00114468]
[1738189536553,0.76364588,103640.0,103630.0,0.00114468]
[1738189539763,0.76364588,103640.0,103630.0,0.00012534]
[1738189542363,0.57066088,103640.0,103610.0,0.01421414]
[1738189542565,0.553822,103620.0,103600.0,0.52611194]
[1738189542965,0.62427794,103620.0,103600.0,0.52611194]
[1738189543155,0.553822,103620.0,103600.0,0.52611194]
[1738189543558,0.55396668,103620.0,103600.0,0.52620842]
[1738189543763,0.55396668,103620.0,103600.0,0.53996983]
[1738189545157,0.55496668,103620.0,103600.0,0.54196983]
[1738189546361,0.55496668,103620.0,103610.0,0.193041]
[1738189546666,0.55496668,103620.0,103610.0,0.26349694]
[1738189546860,0.36194468,103620.0,103610.0,0.26349694]
[1738189547861,0.47633649,103620.0,103610.0,0.26349694]
[1738189548373,0.47633649,103620.0,103610.0,0.26449694]
[1738189551367,0.11553649,103620.0,103610.0,0.26449694]
[1738189551767,0.25852625,103620.0,103610.0,0.26449694]
[1738189555969,0.25852625,103620.0,103610.0,0.194041]
[1738189558373,0.61932625,103620.0,103610.0,0.194041]
[1738189559471,0.81234825,103620.0,103610.0,0.194041]
[1738189561175,0.86954416,103620.0,103610.0,0.194041]
[1738189562870,1.01045604,103620.0,103610.0,0.001]
[1738189563075,1.06235604,103620.0,103610.0,0.001]
[1738189564174,0.89076832,103620.0,103610.0,0.001]
[1738189566171,0.193041,103610.0,103600.0,0.50464308]
[1738189566367,0.83565288,103610.0,103600.0,0.50464308]
[1738189567671,0.83565288,103610.0,103600.0,0.50664308]
[1738189567871,0.83565288,103610.0,103600.0,0.10209648]
[1738189568071,0.83665288,103610.0,103600.0,0.10209648]
[1738189568468,0.84165288,103610.0,103600.0,0.10109648]
[1738189568676,0.84965288,103610.0,103600.0,0.10109648]
[1738189569175,0.65661188,103610.0,103570.0,0.41944694]
[1738189569472,0.65661188,103610.0,103570.0,0.59200288]
[1738189569473,0.553897,103580.0,103570.0,0.59200288]
[1738189571078,0.554897,103580.0,103570.0,0.52154694]
[1738189571670,0.554897,103580.0,103570.0,0.52354694]
[1738189572978,0.6692056,103580.0,103570.0,0.11900034]
[1738189575475,0.6824278,103580.0,103570.0,0.11900034]
[1738189576579,0.75288374,103580.0,103570.0,0.11900034]
[1738189576878,0.6824278,103580.0,103570.0,0.11900034]
[1738189577280,0.5681192,103580.0,103570.0,0.11900034]
[1738189578282,0.63857514,103580.0,103570.0,0.00344823]
[1738189578470,0.68927514,103580.0,103570.0,0.00344823]
[1738189580676,0.75973108,103580.0,103570.0,0.00344823]
[1738189581076,0.68927514,103580.0,103570.0,0.00344823]
[1738189581281,0.75973108,103580.0,103570.0,0.00344823]
[1738189581685,0.68927514,103580.0,103570.0,0.00344823]
[1738189582084,0.80358374,103580.0,103570.0,0.00344823]
[1738189584389,0.87403968,103580.0,103570.0,0.00344823]
[1738189584573,0.80358374,103580.0,103570.0,0.00344823]
[1738189585487,0.87403968,103580.0,103570.0,0.00344823]
[1738189585985,0.95960209,103580.0,103570.0,0.00344823]
[1738189586580,0.88914615,103580.0,103570.0,0.00344823]
[1738189588092,0.95960209,103580.0,103570.0,0.00344823]
[1738189588389,0.87888615,103580.0,103570.0,0.00344823]
[1738189590186,0.79332374,103580.0,103570.0,0.00344823]
[1738189590587,0.79332374,103580.0,103570.0,0.05694823]
[1738189596281,0.79332374,103580.0,103570.0,0.00344823]
[1738189597885,0.84562374,103580.0,103570.0,0.00344823]
[1738189598496,1.04566381,103580.0,103570.0,0.00344823]
[1738189601899,1.11611975,103580.0,103570.0,0.00344823]
[1738189602098,1.04566381,103580.0,103570.0,0.00344823]
[1738189602589,0.97323399,103580.0,103570.0,0.00344823]
[1738189602993,0.90277805,103580.0,103570.0,0.00344823]
[1738189605098,0.97323399,103580.0,103570.0,0.00344823]
[1738189609588,0.90277805,103580.0,103570.0,0.00344823]
[1738189610300,0.73131514,103580.0,103570.0,0.00344823]
[1738189613305,0.6083992,103580.0,103570.0,0.00344823]
[1738189613495,0.6083992,103580.0,103570.0,0.16194823]
[1738189614188,0.67885514,103580.0,103570.0,0.16194823]
[1738189617004,0.85073441,103580.0,103570.0,0.16194823]
[1738189618508,0.81045441,103580.0,103570.0,0.16194823]
[1738189618799,0.73999847,103580.0,103570.0,0.16194823]
[1738189620309,0.54690147,103580.0,103570.0,0.23240417]
[1738189620495,0.17287927,103580.0,103570.0,0.78632017]
[1738189622498,0.19949552,103590.0,103570.0,0.71366011]
[1738189622811,0.19949552,103590.0,103580.0,0.69480888]
[1738189624412,0.20049552,103590.0,103580.0,0.69480888]
[1738189624998,0.20049552,103590.0,103580.0,0.69580888]
[1738189625200,0.48375723,103600.0,103590.0,0.193078]
[1738189625410,1e-08,103600.0,103590.0,0.85058988]
[1738189627107,1e-08,103600.0,103590.0,0.89074988]
[1738189627499,1e-08,103600.0,103590.0,0.89274988]
[1738189627906,0.00014468,103610.0,103590.0,1.31320582]
[1738189628215,0.98195169,103630.0,103620.0,0.26347794]
[1738189628216,0.62115169,103630.0,103620.0,0.26347794]
[1738189628410,0.42814569,103630.0,103620.0,0.33393388]
[1738189628616,0.64526226,103650.0,103620.0,0.76436782]
[1738189628617,0.28446226,103650.0,103620.0,0.76436782]
[1738189628806,0.28446226,103650.0,103640.0,0.69469688]
[1738189629304,0.16473955,103650.0,103640.0,0.76515282]
[1738189629614,0.16473955,103650.0,103640.0,0.69469688]
[1738189630007,0.16473955,103650.0,103640.0,0.37401688]
[1738189630206,0.16473955,103650.0,103640.0,0.73481688]
[1738189631108,0.00014468,103660.0,103650.0,0.192966]
[1738189631416,0.00014468,103660.0,103650.0,0.77232194]
[1738189632401,0.00914468,103660.0,103650.0,0.77332194]
[1738189632607,0.00914468,103660.0,103650.0,0.81010428]
[1738189633807,0.01414468,103660.0,103650.0,0.81110428]
[1738189634109,0.01414468,103660.0,103650.0,0.91834256]
[1738189637909,0.01414468,103660.0,103650.0,0.96834256]
[1738189638111,0.01414468,103660.0,103650.0,0.91834256]
[1738189638426,0.4121,103690.0,103680.0,0.192911]
[1738189638610,0.4121,103690.0,103680.0,0.30014928]
[1738189638818,0.64432657,103700.0,103690.0,0.192892]
[1738189639020,0.64432657,103700.0,103690.0,0.30013028]
[1738189640209,0.59462657,103700.0,103690.0,0.30013028]
[1738189640417,0.19322657,103700.0,103690.0,0.66193028]
[1738189641525,0.117,103700.0,103690.0,0.66293028]
[1738189642117,0.113,103700.0,103690.0,0.66193028]
[1738189643926,0.105,103700.0,103690.0,0.66093028]
[1738189644228,0.113,103700.0,103690.0,0.66193028]
[1738189653927,0.113,103700.0,103690.0,0.71193028]
[1738189654831,0.113,103700.0,103690.0,0.66193028]
[1738189659732,0.113,103700.0,103690.0,0.71193028]
[1738189660330,0.00014468,103710.0,103690.0,0.62627656]
[1738189660529,0.00014468,103710.0,103700.0,0.85808956]
[1738189661437,0.00014468,103710.0,103700.0,0.90808956]
[1738189661632,0.00614468,103710.0,103700.0,0.90908956]
[1738189661836,0.01414468,103710.0,103700.0,0.90908956]
[1738189662324,0.01414468,103710.0,103700.0,0.75185128]
[1738189663439,0.00814468,103710.0,103700.0,0.75185128]
[1738189663637,0.00014468,103710.0,103700.0,0.75285128]
[1738189663844,0.00014468,103710.0,103700.0,0.75985128]
[1738189664537,0.00014468,103710.0,103700.0,0.72001128]
[1738189664842,0.00014468,103710.0,103700.0,0.75981128]